Cogmind - Beta 9.4 @@@ ROGUE MODE // 2020.03.11 @ 14:15:44 Player: VoodooWoodoo Result: Destroyed by B-99 Colossus with Multirail Performance ------------- Evolutions (9) 4500 Regions Visited (20) 4000 Robots Destroyed (75) 375 Value Destroyed (2428) 2428 Prototype IDs (31) 620 Alien Tech Used (0) 0 Bonus (3340) 3340 TOTAL SCORE: 15263 Bonus ------- High Alert Combat Kills 26 Follower Combat Kills 557 Met Warlord at Base 500 MAIN.C Attacked Warlord 500 Met Warlord at Research 2000 Friendly Fire -243 Cogmind --------- Core Integrity 0/1600 Matter 248/300 Energy 20/100 System Corruption 7% Temperature Cool (0) Movement Core (50) Location -1/Access Parts ------- > --- POWER (3) -------- (None) > --- PROPULSION (7) --- (None) > --- UTILITY (12) ----- Advanced Signal Interpreter Improved Hacking Suite > --- WEAPON (3) ------- (None) > --- INVENTORY (4) ---- Nuclear Pulse Array Advanced Signal Interpreter Peak State ------------ > --- POWER ------------ Light Antimatter Reactor Light Antimatter Reactor Light Quantum Reactor > --- PROPULSION ------- Impulse Thruster Cooled Field Propulsion Drive Field Propulsion Array Q-thruster Q-thruster Q-thruster > --- UTILITY ---------- Advanced Heat Sink Medium Storage Unit Gravity Neutralizing Apparatus Enhanced Optical Array Long-range Sensor Array Advanced Signal Interpreter Advanced Signal Interpreter Makeshift Terrain Scanner Improved Maneuvering Thrusters Layered Light Armor Plating Hacking Suite Improved Hacking Suite > --- WEAPON ----------- Fusion Bomb Launcher Falx Force Lance > --- INVENTORY -------- Xenon Bombardment Thruster Xenon Bombardment Thruster Impulse Thruster Advanced Signal Interpreter [Rating: 144] Favorites ----------- Power Light Nuclear Core Engine Light Angular Momentum Engine Power Core Light Nuclear Core Reactor Light Antimatter Reactor Propulsion Light Treads Treads Light Treads Leg Aluminum Leg Flight Unit Q-thruster Utility Large Storage Unit Device Gravity Neutralizing Apparatus Storage Large Storage Unit Processor Advanced Signal Interpreter Hackware Hacking Suite Protection Improved Medium Armor Plating Weapon Heavy Assault Rifle Energy Gun Particle Gun Ballistic Gun Heavy Assault Rifle Launcher Long-range Missile Launcher Slashing Weapon Falx Piercing Weapon Force Lance Build | -11 -10 -9 -9 -9 -8 -8 -8 -7 -6 -5 -5 -4 -4 -4 -4 -3 -3 -3 -2 -1 ------- Run | Scr Mat Mat Min Exi Min Mat Sto Fac Fac Fac Ext Fac Upp Upp War Pro Res Qua Res Acc Slots Evolved 18 | . . 2 . . . 2 . 2 2 2 . 2 . . . . 2 . 2 2 Power 2 | . . . . . . . . . . . . 1 . . . . . . 1 . Propulsion 5 | . . . . . . 1 . . 1 1 . 1 . . . . . . 1 . Utility 10 | . . 1 . . . 1 . 2 1 1 . . . . . . 2 . . 2 Weapon 1 | . . 1 . . . . . . . . . . . . . . . . . . Parts Attached 144 | 6 10 10 9 . 2 18 10 18 2 7 4 4 4 1 2 7 7 2 10 11 Power 19 | 1 2 2 1 . . 1 2 2 . . . 1 1 . . 2 1 . 3 . Engine 5 | 1 2 1 . . . . . 1 . . . . . . . . . . . . Core 7 | . . 1 1 . . 1 2 1 . . . 1 . . . . . . . . Reactor 7 | . . . . . . . . . . . . . 1 . . 2 1 . 3 . Propulsion 40 | 2 3 . 3 . . 3 3 6 1 2 . 1 1 1 . 3 5 1 2 3 Treads 6 | . 3 . 3 . . . . . . . . . . . . . . . . . Leg 11 | 2 . . . . . 3 3 3 . . . . . . . . . . . . Wheel . | . . . . . . . . . . . . . . . . . . . . . Hover . | . . . . . . . . . . . . . . . . . . . . . Flight 23 | . . . . . . . . 3 1 2 . 1 1 1 . 3 5 1 2 3 Utility 47 | 1 3 3 3 . . 7 2 6 1 3 3 1 2 . . 2 1 1 4 4 Device 18 | . 1 1 2 . . 3 1 1 . 3 . 1 2 . . 1 . . 2 . Storage 8 | 1 2 . . . . 2 1 . . . 1 . . . . . . . . 1 Processor 7 | . . . . . . . . 2 . . 2 . . . . 1 . 1 1 . Hackware 3 | . . . . . . . . 1 . . . . . . . . 1 . . 1 Protection 11 | . . 2 1 . . 2 . 2 1 . . . . . . . . . 1 2 Artifact . | . . . . . . . . . . . . . . . . . . . . . Weapon 38 | 2 2 5 2 . 2 7 3 4 . 2 1 1 . . 2 . . . 1 4 Energy Gun 11 | 1 1 3 . . 1 2 1 1 . . . . . . . . . . . 1 Energy Cannon . | . . . . . . . . . . . . . . . . . . . . . Ballistic Gun 15 | 1 1 2 2 . 1 3 1 3 . 1 . . . . . . . . . . Ballistic Cannon . | . . . . . . . . . . . . . . . . . . . . . Launcher 7 | . . . . . . 2 1 . . 1 1 1 . . . . . . . 1 Special Weapon . | . . . . . . . . . . . . . . . . . . . . . Impact Weapon . | . . . . . . . . . . . . . . . . . . . . . Slashing Weapon 1 | . . . . . . . . . . . . . . . . . . . . 1 Piercing Weapon 4 | . . . . . . . . . . . . . . . 2 . . . 1 1 Special Melee Weapon . | . . . . . . . . . . . . . . . . . . . . . Unidentified Prototypes 7 | . . 1 . . . . . 1 . 2 . . . . 1 . 1 . . 1 Parts Lost 60 | . 3 3 . . 1 . . 5 1 . . 1 1 2 1 8 7 . 2 25 Power 10 | . 2 . . . . . . . . . . . 1 . 1 1 1 . 1 3 Propulsion 23 | . 1 . . . . . . 3 . . . . . 1 . 4 5 . . 9 Utility 16 | . . 1 . . . . . . 1 . . 1 . . . 2 1 . 1 9 Weapon 11 | . . 2 . . 1 . . 2 . . . . . 1 . 1 . . . 4 Highest Loss Streak 24 | . 1 2 . . 1 . . 2 1 . . 1 2 2 1 9 5 . 1 24 Average Slot Usage (%) 90 | . 97 100 100 100 98 99 99 80 45 70 84 85 78 83 85 54 53 57 80 80 Engine 3 | . 13 8 . . . . . . 6 5 5 5 5 5 5 . . . . . Core 4 | . . 2 10 11 11 9 9 5 . . . 5 . . . . . . . . Reactor 1 | . . . . . . . . . . . . . 5 5 5 5 7 4 12 9 Treads 8 | . 16 22 22 22 22 . . . . . . . . . . . . . . . Leg 6 | . 11 . . . . 27 27 17 . . . . . . . . . . . . Flight 8 | . . . . . . . . 1 19 23 23 24 26 26 26 21 20 19 25 20 Device 15 | . 12 11 11 11 11 16 18 18 3 12 17 18 15 21 21 17 14 14 20 17 Storage 7 | . 14 11 11 11 11 9 9 5 . . . 5 5 5 5 . . . . 2 Processor 4 | . . . . . . . . 6 6 5 13 11 10 10 10 3 4 9 12 10 Hackware 2 | . . . . . . . . 1 6 5 5 5 5 5 5 5 5 9 6 6 Protection 6 | . . 11 10 11 11 10 9 4 2 5 4 . . . . . . . . 5 Energy Gun 4 | . 14 15 . . 3 8 8 1 . . . . . . . . . . . . Ballistic Gun 14 | . 14 17 32 33 28 18 17 14 . 4 5 3 . . . . . . . . Naked Turns . | . . . . . . . . . . . . . . . . . . . . . Heaviest Build 82 | 10 24 39 39 39 41 38 41 45 12 27 31 39 48 48 45 36 33 17 57 82 Greatest Support 90 | 20 40 40 40 40 40 40 45 45 18 41 41 41 51 48 48 48 61 34 90 90 Greatest Overweight (x) 2 | . 1 . . . 1 . 1 2 . . 1 . . . . . 1 . . . Average Overweight (x) . | . . . . . . . . . . . . . . . . . . . . . Largest Inventory Capacity 10 | 6 10 10 10 10 10 10 10 10 4 4 8 8 8 8 8 8 4 4 4 8 Average Capacity 7 | 5 7 10 10 10 10 8 9 8 4 4 4 8 8 8 8 4 4 4 4 6 Most Carried 10 | 6 10 10 10 10 10 9 10 10 4 4 5 8 8 8 7 7 3 4 4 7 Average Carried 7 | 2 7 8 9 10 9 7 9 8 3 3 4 5 6 7 7 2 2 3 3 4 Final Capacity 10 | 6 10 10 10 10 10 8 10 4 4 4 8 8 8 8 8 4 4 4 4 4 Final Carried 10 | 6 10 9 10 10 10 8 10 3 4 4 5 6 8 7 7 2 2 4 3 3 Class Distribution -------------------- 25% | Scavenger-Gunner 13% | Scavenger-Tank 10% | Generator-Scout 8% | Tank 8% | Mutant 7% | Scout 6% | Scavenger-Scout 5% | Scavenger-Mutant 3% | Commander-Tank 3% | Scavenger-Sprinter 3% | Hacker-Scout Dominant Class ---------------- Scavenger-Mutant | -10/Materials Tank | -9/Materials Scavenger-Gunner | -9/Mines Scavenger-Gunner | -9/Exiles Scavenger-Gunner | -8/Mines Scavenger-Tank | -8/Materials Scavenger-Tank | -8/Storage Scavenger-Gunner | -7/Factory Sprinter | -6/Factory Scavenger-Sprinter | -5/Factory Scavenger-Scout | -5/Extension Scavenger-Scout | -4/Factory Scout | -4/Upper Caves Scout | -4/Upper Caves Ninja | -4/Warlord Scout | -3/Proximity Caves Mutant | -3/Research Hacker-Scout | -3/Quarantine Generator-Scout | -2/Research Generator-Scout | -1/Access Resources | -11 -10 -9 -9 -9 -8 -8 -8 -7 -6 -5 -5 -4 -4 -4 -4 -3 -3 -3 -2 -1 ----------- Run | Scr Mat Mat Min Exi Min Mat Sto Fac Fac Fac Ext Fac Upp Upp War Pro Res Qua Res Acc Matter Collected 2375 | 238 155 107 314 . 59 362 218 260 . . 195 . 122 30 39 85 . . 191 . Remotely . | . . . . . . . . . . . . . . . . . . . . . Salvage Created 2419 | . 404 133 490 . 117 580 332 167 . . 141 6 49 . . . . . . . Parts 132 | . 23 6 30 . 4 32 15 9 . . 6 . 7 . . . . . . . Haulers Intercepted . | . . . . . . . . . . . . . . . . . . . . . Recyclers Shooed 1 | . . . . . 1 . . . . . . . . . . . . . . . Parts Field Recycled . | . . . . . . . . . . . . . . . . . . . . . Retrieved Matter . | . . . . . . . . . . . . . . . . . . . . . Parts Self-Destructed 10 | . . . . . . . . . . . . . 7 . 3 . . . . . Prevented 2 | . . . . . . . . . . . . . . . 2 . . . . . Kills | -11 -10 -9 -9 -9 -8 -8 -8 -7 -6 -5 -5 -4 -4 -4 -4 -3 -3 -3 -2 -1 ------- Run | Scr Mat Mat Min Exi Min Mat Sto Fac Fac Fac Ext Fac Upp Upp War Pro Res Qua Res Acc Combat Hostiles Destroyed 67 | . 11 3 10 . 2 17 6 4 . . 8 1 5 . . . . . . . Guns 48 | . 11 3 10 . 2 11 6 4 . . 1 . . . . . . . . . AOE 19 | . . . . . . 6 . . . . 7 1 5 . . . . . . . Classes Destroyed 11 | . 2 1 3 . . 2 2 1 . . . . . . . . . . . . Worker 2 | . . . 1 . . . 1 . . . . . . . . . . . . . Builder 1 | . . . . . . 1 . . . . . . . . . . . . . . Tunneler 2 | . . . 2 . . . . . . . . . . . . . . . . . Recycler 1 | . . . . . . . 1 . . . . . . . . . . . . . Operator 1 | . . . . . . . 1 . . . . . . . . . . . . . Swarmer 25 | . 3 . . . . 7 2 3 . . 4 1 5 . . . . . . . Grunt 31 | . 8 2 9 . 2 4 1 1 . . 4 . . . . . . . . . Brawler 1 | . . . 1 . . . . . . . . . . . . . . . . . Duelist 1 | . . . . . . 1 . . . . . . . . . . . . . . Sentry 9 | . . 1 . . . 5 3 . . . . . . . . . . . . . Programmer 1 | . . . . . . . . 1 . . . . . . . . . . . . Best Kill Streak 8 | . 3 2 5 . 2 8 4 3 . . 4 1 5 . . . . . . . Combat Bots Only 8 | . 3 2 3 . 2 8 2 3 . . 4 1 5 . . . . . . . Max Kills in Single Turn 5 | . 2 1 1 . 1 4 2 2 . . 3 1 5 . . . . . . . Gunslinging 1 | . 1 . . . . . 1 1 . . . . . . . . . . . . Exploded 5 | . . . . . . 4 . . . . 3 1 5 . . . . . . . Melee . | . . . . . . . . . . . . . . . . . . . . . Uniques/NPCs Destroyed . | . . . . . . . . . . . . . . . . . . . . . Combat | -11 -10 -9 -9 -9 -8 -8 -8 -7 -6 -5 -5 -4 -4 -4 -4 -3 -3 -3 -2 -1 -------- Run | Scr Mat Mat Min Exi Min Mat Sto Fac Fac Fac Ext Fac Upp Upp War Pro Res Qua Res Acc Damage Taken 8701 | . 721 165 459 . 109 505 126 1010 32 . 417 300 85 220 113 429 516 . 111 3383 Core 2736 | . 203 16 66 . . 37 . 309 . . 11 50 . 93 45 150 128 . 20 1608 Absorbed by Shields 81 | . . . . . . . . . . . 81 . . . . . . . . . Core Remaining (%) 80 | 100 18 . . . 79 . 93 55 100 . 98 . . . . 70 . 90 98 . Volleys Fired 169 | . 43 9 28 . 5 27 19 16 . . 14 2 1 2 . . . . . 3 Largest 3 | . 2 3 3 . 3 3 3 3 . . 2 1 1 1 . . . . . 1 Hottest 153 | . 85 153 66 . 69 116 116 109 . . 71 49 49 49 . . . . . 52 Shots Fired 420 | . 86 27 84 . 15 81 57 43 . . 19 2 1 2 . . . . . 3 Gun 403 | . 86 27 84 . 15 79 55 43 . . 14 . . . . . . . . . Cannon . | . . . . . . . . . . . . . . . . . . . . . Launcher 17 | . . . . . . 2 2 . . . 5 2 1 2 . . . . . 3 Special . | . . . . . . . . . . . . . . . . . . . . . Kinetic 296 | . 43 10 84 . 15 53 36 41 . . 14 . . . . . . . . . Thermal 107 | . 43 17 . . . 26 19 2 . . . . . . . . . . . . Explosive 17 | . . . . . . 2 2 . . . 5 2 1 2 . . . . . 3 Electromagnetic . | . . . . . . . . . . . . . . . . . . . . . Robot Hit Streak 25 | . 12 25 10 . 9 19 9 5 . . 6 2 . 1 . . . . . . Robot Miss Streak 11 | . 3 2 3 . 1 5 3 11 . . 8 . . 1 . . . . . . Penetration Max . | . . . . . . . . . . . . . . . . . . . . . Secondary Targets 5 | . 2 . . . . 1 1 1 . . . . . . . . . . . . Max Gunslinging Chain 1 | . 1 . . . . 1 1 1 . . . . . . . . . . . . Shots Hit Robots 281 | . 61 19 57 . 12 56 28 28 . . 16 1 . 1 . 2 . . . . Core Hits 172 | . 24 5 27 . 8 33 14 19 . . 31 2 6 2 . . . . . 1 Critical Hits 4 | . 2 . 1 . . . . 1 . . . . . . . . . . . . Critical Kills 1 | . . . 1 . . . . . . . . . . . . . . . . . Critical Parts Destroyed 3 | . 2 . . . . . . 1 . . . . . . . . . . . . Melee Attacks 7 | . . . . . . . . . . . . . . . . 2 . . 2 3 Impact . | . . . . . . . . . . . . . . . . . . . . . Slashing . | . . . . . . . . . . . . . . . . . . . . . Piercing 5 | . . . . . . . . . . . . . . . . . . . 2 3 Entropic 2 | . . . . . . . . . . . . . . . . 2 . . . . Sneak Attacks . | . . . . . . . . . . . . . . . . . . . . . Combat Hostiles . | . . . . . . . . . . . . . . . . . . . . . Follow-up Attacks 1 | . . . . . . . . . . . . . . . . 1 . . . . Damage Inflicted 6049 | . 677 241 648 . 208 1171 433 570 . . 1122 192 332 181 . 128 . . . 146 Guns 3829 | . 672 241 648 . 208 848 433 570 . . 209 . . . . . . . . . Cannons . | . . . . . . . . . . . . . . . . . . . . . Explosions 2087 | . . . . . . 323 . . . . 913 192 332 181 . . . . . 146 Melee 128 | . . . . . . . . . . . . . . . . 128 . . . . Ramming 5 | . 5 . . . . . . . . . . . . . . . . . . . Kinetic 2549 | . 223 69 648 . 208 462 194 536 . . 209 . . . . . . . . . Thermal 1449 | . 449 172 . . . 386 239 34 . . 169 . . . . . . . . . Explosive 1918 | . . . . . . 323 . . . . 744 192 332 181 . . . . . 146 Electromagnetic . | . . . . . . . . . . . . . . . . . . . . . Impact . | . . . . . . . . . . . . . . . . . . . . . Slashing . | . . . . . . . . . . . . . . . . . . . . . Piercing . | . . . . . . . . . . . . . . . . . . . . . Entropic 128 | . . . . . . . . . . . . . . . . 128 . . . . Highest Corruption 7 | . . . . . . . 1 1 . . . . . . 3 . 1 1 . 7 Average Corruption 1 | . . . . . . . 1 1 . . . . . . 2 . 1 1 . 2 Corruption Purged . | . . . . . . . . . . . . . . . . . . . . . Effects 8 | . . . . . . . 4 2 . . . . . . . . . . . 2 Message Errors 3 | . . . . . . . 2 1 . . . . . . . . . . . . Energy Discharges 2 | . . . . . . . 1 1 . . . . . . . . . . . . Data Loss (minor) 3 | . . . . . . . 1 . . . . . . . . . . . . 2 Overload Shots . | . . . . . . . . . . . . . . . . . . . . . Overflow Damage 191 | . . . . . . . . . . . 75 3 . 113 . . . . . . Projectiles . | . . . . . . . . . . . . . . . . . . . . . Explosions 191 | . . . . . . . . . . . 75 3 . 113 . . . . . . Melee . | . . . . . . . . . . . . . . . . . . . . . Knockbacks . | . . . . . . . . . . . . . . . . . . . . . Impact . | . . . . . . . . . . . . . . . . . . . . . Kinetic . | . . . . . . . . . . . . . . . . . . . . . Secondary . | . . . . . . . . . . . . . . . . . . . . . Self-Inflicted Damage 133 | . . . . . . 28 . . . . 29 . . . . . . . . 76 Shots 3 | . . . . . . 1 . . . . 1 . . . . . . . . 1 Rammed 1 | . 1 . . . . . . . . . . . . . . . . . . . Targets Rammed 1 | . 1 . . . . . . . . . . . . . . . . . . . Kicked . | . . . . . . . . . . . . . . . . . . . . . Crushed . | . . . . . . . . . . . . . . . . . . . . . Highest Temperature 250 | . 130 140 187 . 109 141 7 9 . . . 30 16 29 . . 4 . 250 70 Average Temperature 46 | . 27 58 73 . 60 35 5 6 . . . 14 8 15 . . 2 . 54 26 Received Heat Transfer 1412 | . 375 75 222 . 54 189 45 222 9 . 20 30 9 27 . 72 27 . . 36 Siege Activations . | . . . . . . . . . . . . . . . . . . . . . Robots Corrupted . | . . . . . . . . . . . . . . . . . . . . . Combat Hostiles . | . . . . . . . . . . . . . . . . . . . . . Parts Fried . | . . . . . . . . . . . . . . . . . . . . . Impact Corruptions . | . . . . . . . . . . . . . . . . . . . . . Robots Melted . | . . . . . . . . . . . . . . . . . . . . . Combat Hostiles . | . . . . . . . . . . . . . . . . . . . . . Parts Melted 6 | . . 2 . . . 4 . . . . . . . . . . . . . . Heat Transferred 3258 | . 1258 407 . . . 851 518 74 . . 150 . . . . . . . . . Parts Sabotaged . | . . . . . . . . . . . . . . . . . . . . . Parts Stolen . | . . . . . . . . . . . . . . . . . . . . . Parts Stripped . | . . . . . . . . . . . . . . . . . . . . . Power Chain Reactions . | . . . . . . . . . . . . . . . . . . . . . Missiles Intercepted . | . . . . . . . . . . . . . . . . . . . . . Alert | -11 -10 -9 -9 -9 -8 -8 -8 -7 -6 -5 -5 -4 -4 -4 -4 -3 -3 -3 -2 -1 ------- Run | Scr Mat Mat Min Exi Min Mat Sto Fac Fac Fac Ext Fac Upp Upp War Pro Res Qua Res Acc Peak Influence 455 | . 225 65 150 . 55 216 426 305 162 70 455 177 . . . . 71 89 129 247 Average Influence 89 | . 88 32 60 . 28 102 163 146 70 46 145 72 . . . . 20 75 69 141 Maximum Alert Level 2 | . 1 . . . . 1 2 1 . . 2 . . . . . . . . 1 Low Security (%) 86 | 100 81 100 100 . 100 90 62 59 100 100 61 100 . . . . 100 100 100 74 Level 1 12 | . 18 . . . . 9 29 40 . . 31 . . . . . . . . 25 Level 2 1 | . . . . . . . 8 . . . 6 . . . . . . . . . Level 3 . | . . . . . . . . . . . . . . . . . . . . . Level 4 . | . . . . . . . . . . . . . . . . . . . . . Level 5 . | . . . . . . . . . . . . . . . . . . . . . High Security . | . . . . . . . . . . . . . . . . . . . . . Max Security . | . . . . . . . . . . . . . . . . . . . . . Squads Dispatched 20 | . 2 . . . . 1 1 5 1 3 2 1 . . . . 3 . . 1 Investigation 7 | . 1 . . . . . . 3 . . 1 . . . . . 2 . . . Extermination 2 | . . . . . . . . 2 . . . . . . . . . . . . Reinforcement 10 | . 1 . . . . 1 . . 1 3 1 1 . . . . 1 . . 1 Assault . | . . . . . . . . . . . . . . . . . . . . . Garrison 1 | . . . . . . . 1 . . . . . . . . . . . . . Intercept . | . . . . . . . . . . . . . . . . . . . . . Construction Impeded . | . . . . . . . . . . . . . . . . . . . . . Haulers Reinforced . | . . . . . . . . . . . . . . . . . . . . . Stealth | -11 -10 -9 -9 -9 -8 -8 -8 -7 -6 -5 -5 -4 -4 -4 -4 -3 -3 -3 -2 -1 --------- Run | Scr Mat Mat Min Exi Min Mat Sto Fac Fac Fac Ext Fac Upp Upp War Pro Res Qua Res Acc Distress Signals 26 | . 4 . . . . 2 2 3 1 1 4 1 . . . . 1 . 5 2 Communications Jammed 8 | . . . . . . . . . . . . 1 . . 7 . . . . . Distress Signals 8 | . . . . . . . . . . . . 1 . . 7 . . . . . Times Spotted 287 | . 32 3 11 . 3 30 18 38 8 3 17 13 8 3 12 5 14 1 27 41 Peak Tracking Total 15 | . 6 2 3 . 3 7 4 15 6 3 6 12 5 3 7 5 9 1 8 14 Tactical Retreats 33 | . 2 . 1 . 1 1 1 6 1 . 2 1 1 . . 1 . . 6 9 Traps | -11 -10 -9 -9 -9 -8 -8 -8 -7 -6 -5 -5 -4 -4 -4 -4 -3 -3 -3 -2 -1 ------- Run | Scr Mat Mat Min Exi Min Mat Sto Fac Fac Fac Ext Fac Upp Upp War Pro Res Qua Res Acc Traps Triggered 7 | . . . 1 . . . 2 1 . . 2 . . . . . . . . 1 Indirectly . | . . . . . . . . . . . . . . . . . . . . . Trap Hack Attempts . | . . . . . . . . . . . . . . . . . . . . . Triggered . | . . . . . . . . . . . . . . . . . . . . . Disarmed . | . . . . . . . . . . . . . . . . . . . . . Reprogrammed . | . . . . . . . . . . . . . . . . . . . . . Reused . | . . . . . . . . . . . . . . . . . . . . . Traps Extracted . | . . . . . . . . . . . . . . . . . . . . . Installed . | . . . . . . . . . . . . . . . . . . . . . Triggered 4 | . . . . . . . . . . . . . . . 4 . . . . . Machines | -11 -10 -9 -9 -9 -8 -8 -8 -7 -6 -5 -5 -4 -4 -4 -4 -3 -3 -3 -2 -1 ---------- Run | Scr Mat Mat Min Exi Min Mat Sto Fac Fac Fac Ext Fac Upp Upp War Pro Res Qua Res Acc Machines Disabled 11 | . . . . . . . 2 5 . . 2 . . . . . . . . 2 Max in Single Turn 2 | . . . . . . . 1 . . . 2 . . . . . . . . 1 Garrison Access 2 | . . . . . . . 1 . . . . . . . . . . . 1 . Energy Cycler 1 | . . . . . . . . . . . 1 . . . . . . . . . Machines Sabotaged . | . . . . . . . . . . . . . . . . . . . . . Garrisons Compromised . | . . . . . . . . . . . . . . . . . . . . . Overloaded Fab Kills . | . . . . . . . . . . . . . . . . . . . . . Fab Network Shutdowns . | . . . . . . . . . . . . . . . . . . . . . Hacking | -11 -10 -9 -9 -9 -8 -8 -8 -7 -6 -5 -5 -4 -4 -4 -4 -3 -3 -3 -2 -1 --------- Run | Scr Mat Mat Min Exi Min Mat Sto Fac Fac Fac Ext Fac Upp Upp War Pro Res Qua Res Acc Machines Accessed 76 | . 4 3 2 . . 6 10 5 4 5 9 6 1 . 6 . 3 6 1 5 Terminals 61 | . 4 3 1 . . 6 9 3 4 3 9 5 . . . . 3 5 1 5 Fabricators 4 | . . . . . . . . 2 . 1 . 1 . . . . . . . . Repair Stations . | . . . . . . . . . . . . . . . . . . . . . Recycling Units . | . . . . . . . . . . . . . . . . . . . . . Scanalyzers 1 | . . . . . . . . . . 1 . . . . . . . . . . Garrison Access 2 | . . . . . . . 1 . . . . . . . . . . 1 . . Total Hacks 201 | . 11 11 4 . . 18 25 10 11 12 27 15 1 . 22 . 12 11 2 9 Successful 124 | . 4 7 1 . . 9 13 4 6 8 13 12 1 . 22 . 10 8 2 4 Failed 76 | . 7 4 3 . . 9 12 6 5 4 14 3 . . . . 1 3 . 5 Catastrophic 12 | . 1 . . . . 2 3 2 1 . . . . . . . . 1 . 2 Database Lockouts 1 | . . . . . . . . . . . . . . . . . 1 . . . Manual 81 | . 4 6 . . . 7 9 . 8 4 12 9 . . 1 . 7 9 1 4 Terminals 162 | . 11 11 3 . . 18 24 6 11 6 27 12 . . . . 12 10 2 9 Fabricators 10 | . . . . . . . . 4 . 3 . 3 . . . . . . . . Repair Stations . | . . . . . . . . . . . . . . . . . . . . . Recycling Units . | . . . . . . . . . . . . . . . . . . . . . Scanalyzers 3 | . . . . . . . . . . 3 . . . . . . . . . . Garrison Access 2 | . . . . . . . 1 . . . . . . . . . . 1 . . Terminal Hacks 94 | . 3 6 1 . . 9 12 2 3 3 10 6 1 . 22 . 7 4 1 4 Record 20 | . . . . . . . . . 1 1 1 . . . 10 . 4 1 . 2 Robot Schematic 2 | . . . . . . . 2 . . . . . . . . . . . . . Robot Analysis 3 | . . . . . . . 1 . . . 1 1 . . . . . . . . Prototype ID Bank 13 | . . 1 . . . . 1 . . . . . . . 11 . . . . . Open Door 8 | . . . 1 . . . 1 . . 1 3 . 1 . 1 . . . . . Emergency Access Points 2 | . . 1 . . . . 1 . . . . . . . . . . . . . Terminal Index 2 | . . . . . . . . . . . . 1 . . . . . 1 . . Alert Level 15 | . 1 1 . . . 2 3 1 . 1 2 1 . . . . 1 1 1 . Unreport Threat 7 | . 1 . . . . 2 2 . 1 . 1 . . . . . . . . . Locate Traps 2 | . . 1 . . . . 1 . . . . . . . . . . . . . Surveillance Status 1 | . . 1 . . . . . . . . . . . . . . . . . . Recall Investigation 1 | . . . . . . . . . . . . . . . . . 1 . . . Recall Reinforcements 1 | . . . . . . 1 . . . . . . . . . . . . . . Hauler Manifests 1 | . . . . . . . . . . . . 1 . . . . . . . . Zone Layout 16 | . 1 1 . . . 4 . 1 1 . 2 2 . . . . 1 1 . 2 Fabricator Hacks 5 | . . . . . . . . 2 . 2 . 1 . . . . . . . . Load Schematic 3 | . . . . . . . . 1 . 1 . 1 . . . . . . . . Build 2 | . . . . . . . . 1 . 1 . . . . . . . . . . Repair Station Hacks . | . . . . . . . . . . . . . . . . . . . . . Recycling Unit Hacks . | . . . . . . . . . . . . . . . . . . . . . Scanalyzer 2 | . . . . . . . . . . 2 . . . . . . . . . . Insert Component 1 | . . . . . . . . . . 1 . . . . . . . . . . Analyze 1 | . . . . . . . . . . 1 . . . . . . . . . . Garrison Access Hacks 1 | . . . . . . . 1 . . . . . . . . . . . . . Seal Access 1 | . . . . . . . 1 . . . . . . . . . . . . . Unauthorized Hacks 55 | . 2 2 . . . . . . 10 4 8 11 . . . . 6 8 2 2 Terminals 22 | . 1 1 . . . . . . 3 1 3 5 . . . . 3 4 1 . Assimilate 3 | . 1 1 . . . . . . 1 . . . . . . . . . . . Botnet 19 | . . . . . . . . . 2 1 3 5 . . . . 3 4 1 . Fabricators . | . . . . . . . . . . . . . . . . . . . . . Repair Stations . | . . . . . . . . . . . . . . . . . . . . . Recycling Units . | . . . . . . . . . . . . . . . . . . . . . Scanalyzers . | . . . . . . . . . . . . . . . . . . . . . Garrison Access . | . . . . . . . . . . . . . . . . . . . . . Data Cores Recovered 2 | . . . . . . . 2 . . . . . . . . . . . . . Used 1 | . . . . . . . 1 . . . . . . . . . . . . . Hacking Detections 60 | . 4 3 1 . . 5 9 4 4 3 7 6 . . . . 3 6 . 5 Full Trace Events 6 | . 1 . . . . . . 3 . . 1 . . . . . 1 . . . Feedback Events . | . . . . . . . . . . . . . . . . . . . . . Feedback Blocked . | . . . . . . . . . . . . . . . . . . . . . Robot Schematics Acquired 2 | . . . . . . . 2 . . . . . . . . . . . . . Robots Built 2 | . . . . . . . . . . 2 . . . . . . . . . . Matter 438 | . . . . . . . . 219 . 219 . . . . . . . . . . Time 232 | . . . . . . . . 116 . 116 . . . . . . . . . . Total Robot Build Rating 6 | . . . . . . . . . . 6 . . . . . . . . . . Part Schematics Acquired 1 | . . . . . . . . . . 1 . . . . . . . . . . Parts Built . | . . . . . . . . . . . . . . . . . . . . . Matter . | . . . . . . . . . . . . . . . . . . . . . Time . | . . . . . . . . . . . . . . . . . . . . . Total Part Build Rating . | . . . . . . . . . . . . . . . . . . . . . Parts Repaired . | . . . . . . . . . . . . . . . . . . . . . Time . | . . . . . . . . . . . . . . . . . . . . . Parts Recycled . | . . . . . . . . . . . . . . . . . . . . . Recycled Matter . | . . . . . . . . . . . . . . . . . . . . . Retrieved Matter . | . . . . . . . . . . . . . . . . . . . . . Retrieved Components . | . . . . . . . . . . . . . . . . . . . . . Parts Scanalyzed 1 | . . . . . . . . . . 1 . . . . . . . . . . Part Schematics Acquired 1 | . . . . . . . . . . 1 . . . . . . . . . . Parts Damaged . | . . . . . . . . . . . . . . . . . . . . . Bothacking | -11 -10 -9 -9 -9 -8 -8 -8 -7 -6 -5 -5 -4 -4 -4 -4 -3 -3 -3 -2 -1 ------------ Run | Scr Mat Mat Min Exi Min Mat Sto Fac Fac Fac Ext Fac Upp Upp War Pro Res Qua Res Acc Used RIF Installer . | . . . . . . . . . . . . . . . . . . . . . Robots Hacked . | . . . . . . . . . . . . . . . . . . . . . Non-combat . | . . . . . . . . . . . . . . . . . . . . . Combat . | . . . . . . . . . . . . . . . . . . . . . Robot Hacks Applied . | . . . . . . . . . . . . . . . . . . . . . Relay Couplers Released 6 | . . . . . . . . . . . . . . . . . . . 6 . Machine Destruction 2 | . . . . . . . . . . . . . . . . . . . 2 . Programmers 4 | . . . . . . . . . . . . . . . . . . . 4 . Robots Rewired . | . . . . . . . . . . . . . . . . . . . . . Allies Hacked . | . . . . . . . . . . . . . . . . . . . . . Hacks Repelled . | . . . . . . . . . . . . . . . . . . . . . Allies | -11 -10 -9 -9 -9 -8 -8 -8 -7 -6 -5 -5 -4 -4 -4 -4 -3 -3 -3 -2 -1 -------- Run | Scr Mat Mat Min Exi Min Mat Sto Fac Fac Fac Ext Fac Upp Upp War Pro Res Qua Res Acc Total Allies 19 | . 1 . . . . . 10 . . 2 6 . . . . . . . . . Largest Group 10 | . 1 . . . . . 10 4 . 2 4 2 . . . . . . . . Highest-Rated Group 242 | . 10 . . . . . 173 63 . 42 242 187 . . . . . . . . Highest-Rated Ally 156 | . 10 . . . . . 29 16 . 21 156 156 . . . . . . . . Total Orders 8 | . 1 . . . . . 1 . . 4 1 . . . . . . . . 1 GOTO 3 | . . . . . . . . . . 1 1 . . . . . . . . 1 FOLLOW 4 | . 1 . . . . . 1 . . 2 . . . . . . . . . . EXPLORE 1 | . . . . . . . . . . 1 . . . . . . . . . . Ally Attacks 152 | . . . . . . . 88 48 . . 16 . . . . . . . . . Total Damage 1903 | . . . . . . . 1097 501 . . 305 . . . . . . . . . Kills 22 | . . . . . . . 9 8 . . 5 . . . . . . . . . Allies Corrupted 1 | . . . . . . . . . . . . . . . . . . . . 1 Allies Melted . | . . . . . . . . . . . . . . . . . . . . . Intel | -11 -10 -9 -9 -9 -8 -8 -8 -7 -6 -5 -5 -4 -4 -4 -4 -3 -3 -3 -2 -1 ------- Run | Scr Mat Mat Min Exi Min Mat Sto Fac Fac Fac Ext Fac Upp Upp War Pro Res Qua Res Acc Robot Analysis Total 3 | . . . . . . . 1 . . . 1 1 . . . . . . . . Derelict Logs Recovered 6 | . . . 2 . . . . . . . . . 2 2 . . . . . . Drone Launches 12 | . . . . . . . . . . 10 . . . . . . . . . 2 Drone Recoveries . | . . . . . . . . . . . . . . . . . . . . . Exploration | -11 -10 -9 -9 -9 -8 -8 -8 -7 -6 -5 -5 -4 -4 -4 -4 -3 -3 -3 -2 -1 ------------- Run | Scr Mat Mat Min Exi Min Mat Sto Fac Fac Fac Ext Fac Upp Upp War Pro Res Qua Res Acc Turns Passed 7765 | 75 676 938 902 493 88 663 573 616 72 214 425 195 205 99 320 86 79 109 629 308 Spaces Moved 10219 | 53 325 544 462 309 40 378 373 640 204 349 712 522 631 305 858 198 216 320 1766 1014 Core 25 | 4 . . . . . . . . . . . . . . . . . . . 21 Treads 1624 | . 269 544 462 309 40 . . . . . . . . . . . . . . . Legs 1161 | 49 56 . . . . 378 373 305 . . . . . . . . . . . . Wheels . | . . . . . . . . . . . . . . . . . . . . . Hover . | . . . . . . . . . . . . . . . . . . . . . Flight 7409 | . . . . . . . . 335 204 349 712 522 631 305 858 198 216 320 1766 993 Fastest Speed 23 | 50 120 160 160 160 160 123 123 34 32 28 28 28 26 29 29 29 23 32 23 24 Average Speed 60 | 114 153 160 160 160 169 123 123 79 32 28 34 28 28 29 29 34 31 32 24 26 Slowest Speed 180 | 120 160 160 160 160 180 123 155 180 34 32 109 28 29 32 29 37 100 32 32 50 Overloaded Moves . | . . . . . . . . . . . . . . . . . . . . . Propulsion Burnouts . | . . . . . . . . . . . . . . . . . . . . . Robots Hopped 59 | . . . . . . . . 3 5 1 12 7 1 . 4 . 2 . 13 11 Cave-ins Triggered . | . . . . . . . . . . . . . . . . . . . . . Exploration Rate (%) 46 | 4 55 39 94 74 18 36 47 22 12 25 87 22 76 47 92 51 12 53 61 41 Regions Visited 20 Branch Regions 10 Pre-discovered Areas 2 | . . . . . . . . . . . . . 1 1 . . . . . . Known Exits Taken 7 | . . . . . . . . . . . 1 1 1 1 1 . . 1 1 . Unknown Exits Taken 13 | 1 1 1 1 1 1 1 1 1 1 1 . . . . . 1 1 . . . Scrap Searched 8 | . . . 2 . . . . . . . . . 3 1 . 2 . . . . Spaces Dug 30 | . . . . . . . . . . . . . . . . . . . 2 28 Terrain Destroyed 260 | . . . . . . 20 8 . . . 88 25 24 33 . . . . 2 60 Melee 3 | . . . . . . . . . . . . . . . . . . . 2 1 Projectile . | . . . . . . . . . . . . . . . . . . . . . AOE 257 | . . . . . . 20 8 . . . 88 25 24 33 . . . . . 59 Actions | -11 -10 -9 -9 -9 -8 -8 -8 -7 -6 -5 -5 -4 -4 -4 -4 -3 -3 -3 -2 -1 --------- Run | Scr Mat Mat Min Exi Min Mat Sto Fac Fac Fac Ext Fac Upp Upp War Pro Res Qua Res Acc Total 11405 | 64 427 593 571 308 50 514 443 718 204 462 861 562 650 312 923 216 222 325 1943 1037 Wait 718 | . 25 21 55 . 1 75 30 15 . 96 94 30 13 5 68 7 . . 174 9 Move 10091 | 52 324 543 461 308 39 377 372 633 193 346 690 507 628 304 851 197 211 319 1744 992 Hop 49 | . . . . . . . . 3 5 1 9 7 1 . 2 . 2 . 8 11 Pick Up 84 | 6 14 6 7 . 2 6 4 11 3 4 3 6 2 . . . 2 3 3 2 Fast Attach 55 | 6 1 . 2 . . 2 3 4 1 4 3 3 2 . 2 1 5 2 7 7 Attach 40 | . 2 6 . . 1 2 . 8 1 3 . 1 1 1 . 6 2 . 2 4 Detach 9 | . . . 1 . . . . 2 . . . 1 1 . . 1 . . . 3 Swap 49 | . 7 4 7 . 1 14 7 6 . . 1 . 1 . . . . . 1 . Drop 81 | . 10 4 10 . 1 11 5 20 1 3 3 5 . . . 3 . 1 2 2 Fire 169 | . 43 9 28 . 5 27 19 16 . . 14 2 1 2 . . . . . 3 Melee 6 | . . . . . . . . . . . . . . . . 1 . . 2 3 Ram . | . . . . . . . . . . . . . . . . . . . . . Kick . | . . . . . . . . . . . . . . . . . . . . . Crush 1 | . 1 . . . . . . . . . . . . . . . . . . . Escape Stasis 44 | . . . . . . . . . . . 44 . . . . . . . . . Rewire 3 | . . . . . . . 3 . . . . . . . . . . . . . Trap . | . . . . . . . . . . . . . . . . . . . . . Miscellaneous 6 | . . . . . . . . . . 5 . . . . . . . . . 1 Route ------- -11/Scrapyard -10/Materials -9/Materials -9/Mines (discovered 3 exits: *Mat x2 / [*Exi]) -9/Exiles (discovered 2 exits: [*Min x2]) -8/Mines -8/Materials -8/Storage -7/Factory -6/Factory -5/Factory (discovered 2 exits: *Fac / *Ext) -5/Extension (discovered 3 exits: *Fac x2 / *Cet) -4/Factory -4/Upper Caves -4/Upper Caves -4/Warlord -3/Proximity Caves -3/Research (discovered 4 exits: *Res x2 / Arm / *Qua) -3/Quarantine -2/Research (discovered 2 exits: *Acc / *Tes) -1/Access History --------- Turn | Location | Event 10 | -11/Scrapyard | Discovered new exit (range 15) 76 | -11/Scrapyard | Entered Materials 344 | -10/Materials | Build established: Mutant 380 | -10/Materials | Discovered new exit (range 16) 579 | -10/Materials | Core integrity fell below 50% 673 | -10/Materials | Build established: Scavenger-Mutant 732 | -10/Materials | Core integrity fell below 20% 752 | -10/Materials | Entered another Materials area 752 | -9/Materials | Evolved 2 slots: Utility x1, Weapon x1 867 | -9/Materials | Discovered new exit (range 7) 1584 | -9/Materials | Build established: Tank 1690 | -9/Materials | Entered Mines 1709 | -9/Mines | Met a Derelict who couldn't figure out how to use a Trap Extractor 1940 | -9/Mines | Learned Materials emergency access door positions 2023 | -9/Mines | Build established: Scavenger-Gunner 2217 | -9/Mines | Learned Materials terminal intel 2244 | -9/Mines | Discovered new exit (range 7) 2284 | -9/Mines | Deemed a non-threat by the Exiles lab entrance 2286 | -9/Mines | Discovered new exit (range 5) 2307 | -9/Mines | Discovered new exit (range 7) 2592 | -9/Mines | Entered Exiles 2618 | -9/Exiles | Discovered new exit (range 14) 2666 | -9/Exiles | Met 8R-AWN 2692 | -9/Exiles | Met EX-HEX 2813 | -9/Exiles | Met EX-DEC 2843 | -9/Exiles | Visited The Gauntlet 3063 | -9/Exiles | Discovered new exit (range 14) 3085 | -9/Exiles | Entered Mines 3160 | -8/Mines | Discovered new exit (range 10) 3173 | -8/Mines | Entered Materials 3173 | -8/Materials | Evolved 2 slots: Propulsion x1, Utility x1 3175 | -8/Materials | Loaded intel: 12 terminal locations 3617 | -8/Materials | Destroyed 8 combat bots 3748 | -8/Materials | Build established: Scavenger-Tank 3752 | -8/Materials | Discovered new exit (range 17) 3836 | -8/Materials | Entered Storage 3853 | -8/Storage | Assisted by bots powering up and referring to "LRC-V3" 4068 | -8/Storage | Garrison activated, responded to threat 4201 | -8/Storage | Discovered new exit (range 16) 4409 | -8/Storage | Entered Factory 4409 | -7/Factory | Accompanied by 4 allies 4409 | -7/Factory | Evolved 2 slots: Utility x2 5008 | -7/Factory | Discovered new exit (range 14) 5025 | -7/Factory | Entered another Factory area 5025 | -6/Factory | Evolved 2 slots: Propulsion x1, Utility x1 5081 | -6/Factory | Discovered new exit (range 7) 5097 | -6/Factory | Entered another Factory area 5097 | -5/Factory | Evolved 2 slots: Propulsion x1, Utility x1 5218 | -5/Factory | Discovered new exit (range 48) 5240 | -5/Factory | Discovered new exit (range 6) 5247 | -5/Factory | Fabricated H-55 Commando? 5311 | -5/Factory | Entered Extension 5311 | -5/Extension | Accompanied by 5 allies 5527 | -5/Extension | Rescued A7 5558 | -5/Extension | Rescued a captive Derelict 5559 | -5/Extension | Rescued a captive Derelict 5591 | -5/Extension | Spotted B-75 Beast 5593 | -5/Extension | Spotted B-75 Beast 5610 | -5/Extension | Rescued a captive Derelict 5611 | -5/Extension | Rescued a captive Derelict 5627 | -5/Extension | Rescued a captive Derelict 5640 | -5/Extension | Build established: Scavenger-Scout 5646 | -5/Extension | Energy Cycler disabled 5685 | -5/Extension | Discovered new exit (range 10) 5685 | -5/Extension | Discovered new exit (range 6) 5701 | -5/Extension | Identified exit to Factory 5701 | -5/Extension | Identified exit to Cetus 5725 | -5/Extension | Discovered exit to Factory (range 97) 5736 | -5/Extension | Entered Factory 5736 | -4/Factory | Accompanied by 2 allies 5736 | -4/Factory | Evolved 2 slots: Power x1, Propulsion x1 5897 | -4/Factory | Spotted B-86 Titan 5915 | -4/Factory | Discovered new exit (range 22) 5931 | -4/Factory | Identified exit to Upper Caves 5931 | -4/Factory | Entered Upper Caves 5932 | -4/Upper Caves | Encountered a Warlord checkpoint 5973 | -4/Upper Caves | Learned 12 Research zone layouts 6097 | -4/Upper Caves | Attracted the attention of an 0b10 checkpoint 6134 | -4/Upper Caves | Discovered new exit (range 8) 6136 | -4/Upper Caves | Identified exit to Upper Caves 6136 | -4/Upper Caves | Entered another Upper Caves area 6150 | -4/Upper Caves | Encountered a Warlord checkpoint 6155 | -4/Upper Caves | Learned Research garrison access intel 6167 | -4/Upper Caves | Build established: Scout 6201 | -4/Upper Caves | Discovered new exit (range 15) 6208 | -4/Upper Caves | Learned location of Armory (-3) 6227 | -4/Upper Caves | Attracted the attention of an 0b10 checkpoint 6234 | -4/Upper Caves | Identified exit to Warlord 6235 | -4/Upper Caves | Entered Warlord 6253 | -4/Warlord | System corruption cleaned by Quarantine Array 6345 | -4/Warlord | Visited the Vortex Lab 6347 | -4/Warlord | Found Prototype Piercing Weapon 6347 | -4/Warlord | Identified Vortex Lance 6349 | -4/Warlord | Found Vortex Lance 6356 | -4/Warlord | Warlord's base attacked by MAIN.C 6371 | -4/Warlord | Met Warlord 6550 | -4/Warlord | Discovered new exit (range 18) 6555 | -4/Warlord | Identified exit to Proximity Caves 6555 | -4/Warlord | Entered Proximity Caves 6582 | -3/Proximity Caves | Attracted the attention of an 0b10 checkpoint 6593 | -3/Proximity Caves | Lost 9 parts (2p4n2u1w) 6595 | -3/Proximity Caves | Spotted B-86 Titan 6636 | -3/Proximity Caves | Discovered new exit (range 16) 6641 | -3/Proximity Caves | Entered Research 6641 | -3/Research | Evolved 2 slots: Utility x2 6642 | -3/Research | Identified exit to Research 6642 | -3/Research | Identified exit to Armory 6643 | -3/Research | Loaded intel: 3 garrison access locations 6710 | -3/Research | Central database locked down 6714 | -3/Research | Discovered new exit (range 22) 6720 | -3/Research | Entered Quarantine 6744 | -3/Quarantine | Lost 5 parts (1p4n) 6801 | -3/Quarantine | Discovered exit to Research (range 11) 6829 | -3/Quarantine | Entered Research 6829 | -2/Research | Warlord forces began assault on 0b10 6829 | -2/Research | Evolved 2 slots: Power x1, Propulsion x1 6895 | -2/Research | Met up with Warlord 6939 | -2/Research | Research machine network offline 6943 | -2/Research | Spotted B-90 Cyclops 6989 | -2/Research | Spotted B-90 Cyclops 7081 | -2/Research | Spotted Executioner 7081 | -2/Research | Spotted Executioner 7190 | -2/Research | Build established: Generator-Scout 7287 | -2/Research | Borebot progress halted 7311 | -2/Research | Spotted B-90 Cyclops 7330 | -2/Research | Discovered new exit (range 21) 7338 | -2/Research | Identified exit to Testing 7347 | -2/Research | Borebot progress halted 7372 | -2/Research | Borebot progress halted 7453 | -2/Research | Discovered new exit (range 14) 7456 | -2/Research | Identified exit to Access 7458 | -2/Research | Entered Access 7458 | -1/Access | Evolved 2 slots: Utility x2 7529 | -1/Access | Found Fusion Bomb Launcher 7640 | -1/Access | Spotted B-99 Colossus 7734 | -1/Access | Spotted B-99 Colossus 7737 | -1/Access | Spotted B-99 Colossus 7754 | -1/Access | Core integrity fell below 50% 7761 | -1/Access | Core integrity fell below 20% 7766 | -1/Access | Destroyed by B-99 Colossus with Multirail Last Messages --------------- 07760_ Slug penetrates Wall. 07760_ Penetrated by Slug. 07760_ P-80 Master resets P-80 Master, system corruption cleaned. 07761_ The unstable cave ceiling collapses. 07761_ Acquired Prototype Energy Gun. 07761_ Identified Gamma Rifle. 07761_ Slug penetrates Wall. 07761_ Slug penetrates Earth. 07761_ Slug penetrates Wall. 07761_ Penetrated by Slug. 07762_ Critical hit. 07762_ Gamma Rifle destroyed. 07763_ The unstable cave ceiling collapses. 07763_ Enh. Optical Array destroyed. 07763_ Slug penetrates Earth. 07763_ Slug penetrates Wall. 07764_ The unstable cave ceiling collapses. 07764_ Penetrated by Slug. 07766_ Knocked back. 07766_ Slug penetrates H-88 Terminator. Map ----- +----------------------------------------------------+ | ?????????????????????????????????????????????????? | | ?????????????????????????????????????????????????? | | ?????????????????????????????????????????????????? | | ?????????????????????????????????????????????????? | | ?????????????????????????????????????????????????? | | ?????????????????????????????????????????????????? | | ?????????????????????????????????????????????????? | | ?????????????????????????????????????????????????? | | ?????????????????????????????????????????????????? | | ?????????????????????????????????????????????????? | | ?????????????????????????????????????????????????? | | ?????????????????????????????????????????????????? | | #########????????????????????????????????????????? | | | #????????????######??????????????????????? | | !#????????????# #??????????????????????? | | == #????????????# #??????????????????????? | | == #????????????# #??????????????????????? | | #?????????????# #??????????????????????? | | * #????????????##BB ####???????????????????? | | ? = #????????????#;BB ## ###?????????????????? | | ??? #????????????## # ##????????????????? | | ????? #????????????# h # ###??????????????? | | #######/#????????????"" #??????????##??? | | #????????????" #?????????? ??? | | ####### #????????????"! [ ! #?????????? ??? | | ??????# #????????????#! %@ p![#?????????? ??? | | ??????# #????????????# ! # p=%#?????????? #??? | | ??????# #????????????# ## =!#?????????? #??? | | ??????# #????????????#; ### !"########## ###? | | #?????# #????????????#; #?# #? | | #?????# #????????????# ;##?# +? | | #?????# #????????????#BB ##??# #? | | #?????# #????????????#BB #???##############+##+#? | | #?????# #????????????######??????????# #? | | #?????# #????????????????????????????# #? | | #?????# #########################????# #? | | #?????# #????# #? | | #?????# ###### #? | | #?????# + #? | | #?????####### ###### "" #? | | #???????????# ##+######+#????# "" #? | | ????????????# ####??????????????# "" #? | | ????????????# #?????????????????# S #? | | ????????????# #?????????????????# "" #? | | ????????????# ????????????????# "" #? | | ????????????# ###???????????????# "" #? | | ????????????##### ##?????????????????# #? | | ????????????????# #??????????????????# #? | | ????????????????# #??????????????????####### ####? | | ????????????????# #?????????????????????????##???? | +----------------------------------------------------+ Best States ------------- Heat Dissipation 71 Energy Generation 59 Energy Capacity 405 Matter Stores 300 Matter Capacity 300 Sight Range 22 Robot Scan Range 20 Terrain Scan Range 18 Terrain Scan Density 10 Jamming Range 14 Additional Mass Support 12 Armor Coverage 375 Utility Shielding 66 Evasion (%) 75 Targeting Accuracy 8 Recoil Reduction 2 Kinecelleration 30 Offensive Hacking 22 Item Schematics ----------------- Enh. Optical Array | -5/Factory | Scanalyzed Robot Schematics ------------------ G-47 Trooper | -8/Storage | Hacked H-55 Commando | -8/Storage | Hacked Fabricated ------------ H-55 Commando | x2 | -5/Factory Alien Tech Used ----------------- None Achievements -------------- All-out Warlord Explorer Prison Break Prolific Hacker Quantum Hacking Challenges ------------ None Game ------ Seed CompactProcessingTorch Manual? 0 Play Time 02:50:04 Cumulative 47.1 hours Start 2020.03.11 @ 09:25:22 End 2020.03.11 @ 14:15:44 Sessions 5 Manual Loads 0 Difficulty Rogue Special Mode None Game No. 76 Rogue 76 Adventurer 0 Explorer 0 Win Type - Total 1 Types 0/0/1/0/0/0/0 Lore% 41 Gallery% 39 Achievement% 35 Wizard Run 0 Options --------- ASCII 0 Keyboard 1 Movement Numpad Keybinds 0 Fullscreen 2 Font 24/Terminus Map View 76x50 Tactical HUD 1 Map Filters NONE Filters NONE Steam 1 RUN: a8cc8357-fc1a-41b1-add1-57327d5efc6f